bitfinex-derivatives/quotes_SOLF0:USTF0_20250202
["timestamp","ask_amount","ask_price","bid_price","bid_amount"]
[1738510040247,4.78352969,210.47,210.4,4.7544]
[1738510040453,0.03052969,210.47,210.4,4.7544]
[1738510041152,0.03052969,210.47,210.41,4.7542]
[1738510041357,0.03052969,210.47,210.38,1.70493]
[1738510042163,0.03052969,210.47,210.41,4.754]
[1738510042355,0.03052969,210.47,210.38,1.70493]
[1738510042750,0.03052969,210.47,210.41,4.7541]
[1738510042952,0.03052969,210.47,210.38,1.70493]
[1738510043258,18.22489799,210.6,210.41,14.94489799]
[1738510043559,3.28,210.6,210.41,14.94489799]
[1738510043760,3.28,210.6,210.46,4.7529]
[1738510044162,3.28,210.6,210.41,14.94489799]
[1738510044358,3.28,210.6,210.46,4.7529]
[1738510044558,0.03624166,210.53,210.48,0.03052969]
[1738510044756,4.7524,210.49,210.48,0.03052969]
[1738510046160,4.7522,210.5,210.48,0.03052969]
[1738510046459,0.03624166,210.53,210.48,0.03052969]
[1738510047262,14.94489799,210.69,210.49,14.94489799]
[1738510047455,14.94489799,210.69,210.54,4.7511]
[1738510047861,14.94489799,210.65,210.5,1.4542]
[1738510048163,4.7509,210.56,210.5,1.4542]
[1738510048566,4.7509,210.56,210.55,0.03072026]
[1738510048760,4.7505,210.58,210.55,0.03072026]
[1738510049063,0.03298835,210.58,210.55,0.03072026]
[1738510049264,4.78348835,210.58,210.55,0.03072026]
[1738510049457,0.03298835,210.58,210.55,0.03072026]
[1738510049864,4.7508,210.56,210.55,0.03072026]
[1738510050966,4.7519,210.52,210.46,1.4176]
[1738510051366,1.4751,210.6,210.46,1.4176]
[1738510051567,1.4751,210.6,210.43,14.94489799]
[1738510051768,1.4751,210.6,210.43,19.69849799]
[1738510052063,4.7526,210.49,210.39,14.94489799]
[1738510052268,0.03432101,210.54,210.4,4.7543]
[1738510052470,14.94489799,210.57,210.42,0.03201347]
[1738510052664,4.7518,210.52,210.42,0.03201347]
[1738510052869,0.03313364,210.49,210.39,14.94489799]
[1738510053271,0.03313364,210.49,210.45,0.03250403]
[1738510054569,14.94489799,210.65,210.47,14.94489799]
[1738510054771,1.4514,210.63,210.48,1.4987]
[1738510055971,0.03163967,210.58,210.53,0.03581985]
[1738510057468,4.7511,210.55,210.53,0.03581985]
[1738510057676,0.03163967,210.58,210.53,0.03581985]
[1738510058075,4.751,210.56,210.53,0.03581985]
[1738510058373,0.03163967,210.58,210.53,0.03581985]
[1738510061269,4.7506,210.57,210.53,0.03581985]
[1738510061577,0.03163967,210.58,210.53,0.03581985]
[1738510061775,4.78203967,210.58,210.53,0.03581985]
[1738510061973,0.03163967,210.58,210.53,0.03581985]
[1738510063076,4.7511,210.55,210.53,0.03581985]
[1738510065578,0.03163967,210.58,210.53,0.03581985]
[1738510065780,4.7513,210.54,210.53,0.03581985]
[1738510069278,0.03163967,210.58,210.53,0.03581985]
[1738510069886,4.7513,210.54,210.53,0.03581985]
[1738510070581,4.78223967,210.58,210.53,0.03581985]
[1738510070984,0.03163967,210.58,210.53,0.03581985]
[1738510071381,0.03163967,210.58,210.54,14.94489799]
[1738510071587,0.03163967,210.58,210.57,4.7506]
[1738510071983,1.5004,210.7,210.55,1.5546]
[1738510072184,4.7489,210.65,210.55,1.5546]
[1738510072585,1.5004,210.7,210.54,14.94489799]
[1738510072785,4.7494,210.63,210.55,4.751]
[1738510073187,0.03067873,210.61,210.57,0.03646019]
[1738510075089,0.03067873,210.61,210.59,4.75]
[1738510075387,0.03067873,210.61,210.57,0.03646019]
[1738510075883,0.03067873,210.61,210.6,4.7499]
[1738510076084,1.5004,210.7,210.57,0.03646019]
[1738510076294,1.5004,210.7,210.54,14.94489799]
[1738510076490,1.5004,210.7,210.58,14.94489799]
[1738510076783,4.7479,210.7,210.61,4.7495]
[1738510076988,4.6984,210.74,210.58,14.94489799]
[1738510077191,0.03364116,210.68,210.63,0.0324788]
[1738510077783,0.03364116,210.68,210.51,129.70065389]
[1738510077986,1.5152,210.7,210.51,131.11805389]
[1738510078586,4.749,210.65,210.51,131.11805389]
[1738510078792,1.5152,210.7,210.55,4.751]
[1738510078993,0.03091853,210.6,210.56,0.03372234]
[1738510079193,1.5152,210.7,210.56,0.03028349]
[1738510079393,1.5152,210.7,210.55,4.751]
[1738510079687,0.03419709,210.65,210.61,0.03137649]
[1738510079891,4.7496,210.62,210.61,0.03137649]
[1738510081397,18.22489799,210.63,210.48,1.5354]
[1738510081692,1.5,210.62,210.48,1.5354]
[1738510081892,1.5,210.62,210.5,4.7522]
[1738510082094,1.5,210.62,210.48,1.5354]
[1738510082494,0.03361004,210.57,210.53,0.03357538]
[1738510083393,4.7512,210.55,210.53,0.03357538]
[1738510083795,0.03361004,210.57,210.53,0.03357538]
[1738510083988,4.78421004,210.57,210.53,0.03357538]
[1738510084688,0.03361004,210.57,210.53,0.03357538]
[1738510088799,4.7511,210.55,210.53,0.03357538]
[1738510088998,0.03361004,210.57,210.53,0.03357538]
[1738510090399,7.7003,210.72,210.55,14.94489799]
[1738510090702,4.7485,210.67,210.59,9.37285771]
[1738510090904,7.7003,210.72,210.63,4.7492]
[1738510091097,9.37285771,210.79,210.65,9.37285771]
[1738510091304,51.19776462,210.79,210.71,9.37285771]
[1738510091505,0.03309327,210.74,210.71,9.37285771]
[1738510091702,51.19776462,210.79,210.71,9.37285771]
[1738510091897,44.76506462,210.79,210.78,9.37285771]
[1738510092204,77.21858247,210.81,210.78,9.37285771]
[1738510092205,32.27826098,210.81,210.78,9.37285771]
[1738510092708,144.55060372,210.82,210.8,14.96281803]
[1738510093005,144.58445308,210.82,210.8,14.96281803]
[1738510093302,4.4473,210.94,210.77,0.03475993]
[1738510093506,14.96281803,210.91,210.77,0.03475993]
[1738510093705,14.96281803,210.91,210.72,144.66347192]
[1738510093907,4.7454,210.81,210.72,144.66347192]
[1738510094107,14.96281803,210.91,210.72,144.66347192]
[1738510094407,0.03264404,210.79,210.74,0.03060568]
[1738510094702,14.96281803,210.91,210.72,144.66347192]
[1738510094899,14.96281803,210.91,210.72,14.96281803]
[1738510095202,0.03177412,210.79,210.74,0.03227937]
[1738510095407,14.96281803,210.91,210.72,14.96281803]
[1738510095602,0.03396331,210.84,210.74,0.03645563]
[1738510095904,0.03396331,210.84,210.72,14.96281803]
[1738510096104,0.03396331,210.84,210.77,0.03326951]
[1738510096701,0.03396331,210.84,210.68,129.70065389]
[1738510096907,14.96281803,210.83,210.68,129.70065389]
[1738510097200,2.9674,210.82,210.68,129.70065389]
[1738510097802,4.747,210.74,210.68,129.70065389]
[1738510097997,4.747,210.74,210.73,0.03190152]
[1738510098307,0.03096646,210.77,210.68,129.70065389]
[1738510098602,4.7475,210.71,210.68,129.70065389]
[1738510098909,14.96281803,210.75,210.6,129.70065389]
[1738510099102,1.4945,210.7,210.6,129.70065389]
[1738510099306,4.7485,210.67,210.6,129.70065389]
[1738510099504,4.7485,210.67,210.65,0.03455146]
[1738510100305,0.03522418,210.68,210.56,14.96281803]
[1738510100506,4.7487,210.66,210.56,14.96281803]
[1738510100706,1.4945,210.7,210.56,14.96281803]
[1738510100905,4.7491,210.64,210.56,14.96281803]
[1738510101499,0.03643138,210.62,210.58,0.03095502]
[1738510102103,1.5359,210.69,210.58,0.03095502]
[1738510102808,4.75,210.6,210.58,0.03095502]
[1738510104713,4.75,210.6,210.58,5.502e-05]
[1738510104909,0.03114792,210.61,210.5,129.70065389]
[1738510104910,4.752,210.51,210.5,129.70065389]
[1738510105310,14.96281803,210.57,210.41,129.70065389]
[1738510105619,1.463,210.56,210.42,14.96281803]
[1738510106013,4.7522,210.5,210.42,19.71671803]
[1738510106313,0.03400182,210.51,210.47,0.03207583]
[1738510111017,4.7515,210.54,210.47,0.03207583]
[1738510111217,1.463,210.56,210.47,0.03207583]
[1738510112212,0.03117685,210.54,210.47,0.03207583]
[1738510112418,4.7518,210.53,210.47,4.78497583]
[1738510112814,0.03117685,210.54,210.47,0.03207583]
[1738510113620,4.7515,210.53,210.47,0.03207583]
[1738510113819,0.03117685,210.54,210.47,0.03207583]
[1738510115415,4.752,210.51,210.47,0.03207583]
[1738510116116,4.7516,210.53,210.47,0.03207583]
[1738510116315,0.03117685,210.54,210.47,0.03207583]
[1738510116621,4.7518,210.52,210.47,0.03207583]
[1738510116917,0.03117685,210.54,210.47,0.03207583]
[1738510117919,4.7527,210.48,210.47,0.03207583]
[1738510121017,0.03170288,210.5,210.38,15.14734803]
[1738510121018,0.03170288,210.5,210.38,0.18453]
[1738510121412,14.96281803,210.49,210.38,0.18453]
[1738510121618,2.8775,210.48,210.38,0.18453]
[1738510122121,4.754,210.42,210.41,0.03265903]
[1738510123424,4.7547,210.39,210.38,0.18453]
[1738510124919,0.03295318,210.41,210.38,0.18453]
[1738510125323,2.8775,210.48,210.38,0.18453]
[1738510126522,0.03381495,210.45,210.41,0.03370819]
[1738510126722,4.754,210.42,210.41,0.03370819]
[1738510129426,4.7548,210.39,210.33,4.756]
[1738510129727,4.7548,210.39,210.32,14.96281803]
[1738510130022,4.7548,210.39,210.3,129.70065389]
[1738510130023,1.5239,210.44,210.3,129.70065389]
[1738510130718,4.7553,210.37,210.35,0.03196153]
[1738510131425,4.7554,210.36,210.35,0.03196153]
[1738510133021,0.03593931,210.39,210.31,129.70065389]
[1738510133022,4.7559,210.34,210.31,129.70065389]
[1738510133227,1.4592,210.38,210.31,129.70065389]
[1738510133929,4.7559,210.34,210.31,129.70065389]
[1738510134222,1.5239,210.44,210.3,22.58733284]
[1738510134423,1.4592,210.43,210.32,160.6017602]
[1738510134927,1.4592,210.43,210.33,131.08901883]
[1738510135623,0.03053482,210.4,210.36,0.03196538]
[1738510135829,4.755,210.38,210.35,131.08901883]
[1738510138229,4.755,210.38,210.36,153.67635167]
[1738510138722,0.03053482,210.4,210.36,153.67635167]
[1738510138723,4.7551,210.37,210.36,153.67635167]
[1738510139629,0.03053482,210.4,210.34,131.08901883]
[1738510139630,4.7556,210.35,210.34,131.08901883]
[1738510140529,1.4592,210.43,210.34,159.78040721]
[1738510141527,1.4592,210.43,210.35,28.69138838]
[1738510141729,0.03132025,210.41,210.36,0.03118914]
[1738510142433,4.7551,210.37,210.36,0.03118914]
[1738510142625,0.03132025,210.41,210.36,0.03118914]
[1738510142823,4.78582025,210.41,210.36,0.03118914]
[1738510143226,0.03132025,210.41,210.36,0.03118914]
[1738510143830,1.4626,210.48,210.38,131.08901883]
[1738510144035,4.7547,210.39,210.38,131.08901883]
[1738510144331,4.6826,210.48,210.36,131.12020797]
[1738510144933,0.0338318,210.43,210.36,131.12020797]
[1738510145538,4.7543,210.41,210.36,131.12020797]
[1738510145731,0.0338318,210.43,210.39,131.08901883]
[1738510146529,4.7541,210.42,210.39,131.08901883]
[1738510146831,0.0338318,210.43,210.39,131.08901883]
[1738510147028,4.7542,210.42,210.39,131.08901883]
[1738510147334,0.0338318,210.43,210.39,131.08901883]
[1738510147530,0.0338318,210.43,210.41,160.6017602]
[1738510147735,9.39522874,210.47,210.41,160.6017602]
[1738510147931,4.754,210.42,210.41,160.6017602]
[1738510148636,4.754,210.42,210.41,151.3031602]
[1738510149129,4.754,210.42,210.41,215.50570527]
[1738510149431,0.03061322,210.44,210.41,215.50570527]
[1738510149941,4.754,210.42,210.41,215.50570527]
[1738510150242,4.754,210.42,210.41,181.66530527]
[1738510151142,4.754,210.42,210.39,194.25380793]
[1738510151744,4.7538,210.43,210.39,194.25380793]
[1738510151944,4.7538,210.43,210.4,26.69720308]
[1738510153548,4.7538,210.43,210.4,158.42255113]
[1738510153849,4.7542,210.41,210.4,158.42255113]
[1738510155048,4.7545,210.4,210.39,0.03189121]
[1738510155247,9.42584196,210.44,210.39,0.03189121]
[1738510155644,0.03061322,210.44,210.39,0.03189121]
[1738510157755,0.03061322,210.44,210.39,4.78649121]
[1738510158155,0.03061322,210.44,210.39,0.03189121]
[1738510160461,0.03061322,210.44,210.39,9.42711995]
[1738510160653,9.39522874,210.56,210.39,9.42711995]
[1738510160859,9.39522874,210.56,210.42,9.39522874]
[1738510161951,0.03555964,210.51,210.47,9.42866139]
[1738510162150,0.03555964,210.51,210.43,9.39522874]
[1738510162355,9.39522874,210.56,210.43,9.39522874]
[1738510162554,0.03129399,210.48,210.47,0.03292301]
[1738510162752,4.752,210.51,210.47,0.03292301]
[1738510163055,0.02990846,210.5,210.47,0.03292301]
[1738510165651,4.78230846,210.5,210.47,0.03292301]
[1738510166158,0.02990846,210.5,210.47,0.03292301]
[1738510167355,0.02990846,210.5,210.48,4.7526]
[1738510167561,0.02990846,210.5,210.47,0.03292301]
[1738510167960,9.39522874,210.59,210.47,0.03292301]
[1738510168761,4.7513,210.55,210.49,4.7524]
[1738510169261,0.03109027,210.54,210.5,0.03373627]
[1738510169662,0.03109027,210.54,210.51,9.39522874]
[1738510169862,4.7501,210.6,210.55,4.751]
[1738510170161,12.23802874,210.68,210.54,9.39522874]
[1738510171160,4.7499,210.6,210.59,0.03403276]
[1738510171461,4.7499,210.6,210.59,3.276e-05]
[1738510172859,0.03328239,210.63,210.59,3.276e-05]
[1738510173863,4.7497,210.61,210.59,3.276e-05]
[1738510174058,9.39522874,210.6,210.59,3.276e-05]
[1738510174357,4.7518,210.52,210.46,131.72534805]
[1738510174864,4.752,210.51,210.42,12.27802874]
[1738510175362,9.39522874,210.56,210.42,12.27802874]
[1738510175564,0.03199129,210.49,210.44,0.03477936]
[1738510176669,4.7527,210.48,210.44,0.03477936]
[1738510177062,0.03199129,210.49,210.44,0.03477936]
[1738510178268,4.7527,210.48,210.44,0.03477936]
[1738510178462,0.03199129,210.49,210.44,0.03477936]
[1738510179766,4.7529,210.47,210.44,0.03477936]
[1738510180065,9.39522874,210.45,210.35,119.73474805]
[1738510180263,9.39522874,210.36,210.33,155.3593186]
[1738510180661,4.7558,210.34,210.33,155.3593186]
[1738510181165,4.7558,210.34,210.33,140.2956186]
[1738510181361,4.7558,210.34,210.33,112.1766186]
[1738510181760,4.7558,210.34,210.33,104.7590186]
[1738510182562,4.7558,210.34,210.33,74.5264387]
[1738510182563,19.81159986,210.34,210.33,74.5264387]
[1738510182768,4.7563,210.32,210.31,0.03471525]
[1738510184461,15.05579986,210.34,210.16,4.7598]
[1738510184664,19.81249986,210.3,210.16,4.7598]
[1738510184965,19.81249986,210.3,210.15,15.05579986]
[1738510185665,19.81249986,210.3,210.27,0.03023586]
[1738510188267,0.03136578,210.32,210.27,0.03023586]
[1738510188768,0.03136578,210.32,210.17,15.05579986]
[1738510188967,3.36,210.31,210.19,4.759]
[1738510189164,3.36,210.31,210.18,1.5585]
[1738510189966,0.03242372,210.27,210.22,0.03416265]
[1738510193371,4.7583,210.23,210.22,0.03416265]
[1738510193766,0.03242372,210.27,210.22,0.03416265]
[1738510193976,4.78992372,210.27,210.22,0.03416265]
[1738510194269,0.03242372,210.27,210.22,0.03416265]
[1738510194471,4.7578,210.26,210.22,0.03416265]
[1738510194666,0.03242372,210.27,210.22,0.03416265]
[1738510195172,4.7579,210.25,210.22,0.03416265]
[1738510195675,4.7581,210.24,210.22,0.03416265]
[1738510196373,4.7583,210.23,210.22,0.03416265]
[1738510197371,4.7583,210.23,210.22,6.265e-05]
[1738510197672,15.05579986,210.23,210.13,0.207]
[1738510198172,4.7594,210.19,210.13,0.207]
[1738510198372,15.05579986,210.23,210.13,0.207]
[1738510198775,0.03388387,210.18,210.14,0.03170494]
[1738510199167,4.79348387,210.18,210.14,0.03170494]
[1738510199872,0.03388387,210.18,210.14,0.03170494]
[1738510201379,4.7601,210.15,210.14,0.03170494]
[1738510201574,4.7601,210.15,210.14,4.94e-06]
[1738510201974,4.7603,210.14,210.13,4.94e-06]
[1738510204978,0.03388387,210.18,210.13,4.94e-06]
[1738510205684,4.7601,210.16,210.13,4.94e-06]
[1738510206480,4.7602,210.15,210.13,4.94e-06]
[1738510206875,0.03388387,210.18,210.13,4.94e-06]
[1738510207078,4.7599,210.16,210.13,4.94e-06]
[1738510207280,0.03388387,210.18,210.13,4.94e-06]
[1738510207884,4.7598,210.17,210.13,4.94e-06]
[1738510208183,0.03388387,210.18,210.13,4.94e-06]
[1738510208586,0.03388387,210.18,210.05,9.42099814]
[1738510208787,9.42099814,210.19,210.05,9.42099814]
[1738510208987,9.42099814,210.19,209.88,206.26]
[1738510209188,4.7599,210.16,210.09,4.7614]
[1738510209484,9.42099814,210.25,210.1,9.42099814]
[1738510210077,9.42099814,210.22,210.1,14.18199814]
[1738510210276,9.42099814,210.22,210.1,4.761]
[1738510210480,9.42099814,210.22,210.07,9.42099814]
[1738510210785,0.03635016,210.18,210.14,0.03160936]
[1738510215390,94.2,210.26,210.14,0.03160936]
[1738510215683,94.2,210.26,210.19,4.7591]
[1738510215988,94.2,210.26,210.11,15.0676031]
[1738510216590,0.03269132,210.21,210.16,0.03013814]
[1738510216789,0.18689,210.27,210.16,0.03013814]
[1738510216991,0.18689,210.27,210.22,4.7585]
[1738510217391,0.18689,210.27,210.17,1.547]
[1738510217588,4.7577,210.26,210.19,4.7592]
[1738510217792,0.18689,210.27,210.17,1.547]
[1738510218087,4.79204749,210.25,210.2,0.03647622]
[1738510218288,0.03414749,210.25,210.2,0.03647622]
[1738510218889,4.79204749,210.25,210.2,0.03647622]
[1738510219092,0.03414749,210.25,210.2,0.03647622]
[1738510220086,4.79204749,210.25,210.2,0.03647622]
[1738510220893,0.03414749,210.25,210.2,0.03647622]
[1738510222403,0.18689,210.27,210.2,0.03647622]
[1738510223499,4.7559,210.34,210.28,4.7572]
[1738510223700,0.03484087,210.26,210.21,15.0676031]
[1738510223907,6.38773407,210.35,210.21,15.0676031]
[1738510224104,6.38773407,210.35,210.29,0.03196369]
[1738510224304,19.16320221,210.36,210.29,15.09956679]
[1738510224510,12.11680221,210.36,210.29,15.0676031]
[1738510224702,4.82890221,210.36,210.35,4.7556]
[1738510225103,49.06027258,210.37,210.35,4.7556]
[1738510225504,49.06027258,210.37,210.33,19.85983908]
[1738510225703,49.06027258,210.37,210.33,15.10383908]
[1738510225901,0.0326891,210.38,210.33,15.10383908]
[1738510226210,0.0326891,210.38,210.33,0.03623598]
[1738510227108,4.7557,210.35,210.33,0.03623598]
[1738510227610,0.0326891,210.38,210.33,0.03623598]
[1738510228108,1.4824891,210.38,210.33,0.03623598]
[1738510228313,3.32,210.37,210.21,15.0676031]
[1738510228501,4.7771,210.37,210.21,15.0676031]
[1738510228806,4.7564,210.32,210.21,15.0676031]
[1738510229007,4.7771,210.37,210.21,15.0676031]
[1738510229211,1.4911,210.42,210.25,15.0676031]
[1738510229406,1.4911,210.42,210.29,15.0676031]
[1738510229605,0.03075981,210.36,210.31,0.03598259]
[1738510230007,15.0676031,210.39,210.21,15.0676031]
[1738510230313,0.03371208,210.36,210.31,0.03452969]
[1738510230506,0.03371208,210.36,210.21,15.0676031]
[1738510230706,1.4911,210.42,210.34,4.7556]
[1738510230910,1.4911,210.42,210.3,9.39829016]
[1738510231910,0.03540747,210.38,210.34,0.03031296]
[1738510232811,9.43369763,210.38,210.34,0.03031296]
[1738510233113,9.39829016,210.35,210.21,9.39829016]
[1738510233809,9.39829016,210.32,210.15,9.39829016]
[1738510234012,1.4983,210.31,210.15,9.39829016]
[1738510234205,4.7583,210.23,210.21,0.03287844]
[1738510234811,4.759,210.2,210.12,14.15889016]
[1738510235012,9.43120605,210.26,210.12,14.15889016]
[1738510235215,9.39829016,210.26,210.13,4.7605]
[1738510235417,4.7586,210.22,210.13,4.7605]
[1738510235810,4.7588,210.21,210.1,4.7612]
[1738510236016,0.03132616,210.2,210.15,0.03097531]
[1738510237618,0.03132616,210.2,210.16,4.7597]
[1738510237820,0.03132616,210.2,210.15,0.03097531]
[1738510238719,0.03132616,210.2,210.16,4.7598]
[1738510238919,0.03132616,210.2,210.15,0.03097531]
[1738510239414,0.03132616,210.2,210.15,4.79097531]
[1738510239613,0.03132616,210.2,210.15,0.03097531]
[1738510240211,1.45532616,210.2,210.15,0.03097531]
[1738510240413,4.7608,210.12,210.06,0.72452]
[1738510240718,16.58300416,210.19,210.06,0.72452]
[1738510240918,4.7601,210.16,210.06,0.72452]
[1738510241117,16.58300416,210.19,210.06,0.72452]
[1738510241618,4.7607,210.13,210.06,0.72452]
[1738510242015,0.03444802,210.15,210.06,0.72452]
[1738510242218,4.7608,210.12,210.06,0.72452]
[1738510242721,4.7611,210.11,210.06,0.72452]
[1738510242920,0.03444802,210.15,210.06,0.72452]
[1738510243117,16.58300416,210.19,210.06,0.72452]
[1738510243318,0.03566422,210.13,210.06,0.72452]
[1738510243919,0.03566422,210.13,209.9,0.1011]
[1738510243920,0.03566422,210.13,209.95,15.06530416]
[1738510244119,15.06530416,210.11,209.9,0.1011]
[1738510244321,4.7994,210.1,209.93,15.06530416]
[1738510244525,0.03625206,210.04,209.93,15.06530416]
[1738510245924,4.79895206,210.04,209.95,4.7646]
[1738510246424,0.03625206,210.04,209.93,15.06530416]
[1738510246725,0.03625206,210.04,209.89,15.06530416]
[1738510247022,4.7643,209.97,209.89,15.06530416]
[1738510247323,15.06530416,210.07,209.89,15.06530416]
[1738510247324,0.03059388,209.99,209.89,15.06530416]
[1738510247521,4.7641,209.98,209.91,4.7655]
[1738510247722,0.03059388,209.99,209.89,15.06530416]
[1738510250223,0.03059388,209.99,209.89,19.83120416]
[1738510250418,0.03059388,209.99,209.89,15.06530416]
[1738510250825,0.03059388,209.99,209.91,4.7655]
[1738510251122,0.03059388,209.99,209.85,15.06530416]
[1738510251323,4.7659,209.9,209.81,4.7678]
[1738510251526,15.06530416,209.94,209.75,15.06530416]
[1738510251723,0.03584225,209.9,209.75,15.06530416]
[1738510252025,1.4296,209.93,209.75,15.06530416]
[1738510252225,0.03343879,209.85,209.75,15.06530416]
[1738510253129,0.03343879,209.85,209.82,4.7675]
[1738510253626,0.03343879,209.85,209.75,15.06530416]
[1738510254019,0.03343879,209.85,209.81,4.7677]
[1738510254218,0.03343879,209.85,209.75,15.06530416]
[1738510255019,0.03343879,209.85,209.81,4.7678]
[1738510255831,0.03343879,209.85,209.69,0.8643]
[1738510256032,1.48363879,209.85,209.69,0.8643]
[1738510256222,1.48363879,209.85,209.75,4.7691]
[1738510256223,4.7679,209.81,209.75,4.7691]
[1738510256428,0.03143867,209.79,209.69,0.8643]
[1738510256629,3.867e-05,209.79,209.74,15.06530416]
[1738510256926,3.867e-05,209.79,209.78,4.7685]
[1738510257429,18.42530416,209.99,209.89,4.766]
[1738510257622,2.9436,209.98,209.79,0.7316]
[1738510257823,2.9436,209.98,209.79,0.8688]
[1738510258021,15.06530416,209.91,209.8,4.768]
[1738510258427,15.06530416,209.91,209.74,15.06530416]
[1738510258628,4.7666,209.87,209.83,0.03287134]
[1738510258930,0.03659334,209.88,209.83,0.03287134]
[1738510259232,4.7667,209.86,209.83,0.03287134]
[1738510259430,2.9145,209.87,209.83,0.03287134]
[1738510261127,17.97980416,209.87,209.74,4.7693]
[1738510261324,15.06530416,209.83,209.66,15.06530416]
[1738510261731,4.7681,209.8,209.73,4.7696]
[1738510262230,15.06530416,209.83,209.66,15.06530416]
[1738510262424,0.0303732,209.79,209.66,15.06530416]
[1738510262729,2.9145,209.87,209.7,15.06530416]
[1738510262934,7.6811,209.87,209.8,4.768]
[1738510263234,0.03444549,209.81,209.71,0.7307]
[1738510263633,2.9145,209.87,209.7,15.06530416]
[1738510263934,0.03625983,209.78,209.67,0.7307]
[1738510265737,0.03625983,209.78,209.65,0.1385]
[1738510265738,4.7694,209.75,209.7,4.7703]
[1738510265925,0.03625983,209.78,209.65,0.1385]
[1738510266123,15.06530416,209.81,209.65,0.1385]
[1738510266331,0.03538496,209.74,209.65,0.1385]
[1738510267336,4.80488496,209.74,209.62,15.06530416]
[1738510267527,0.03538496,209.74,209.58,15.06530416]
[1738510267934,2.9758,209.76,209.67,4.771]
[1738510268233,0.03598237,209.68,209.67,4.771]
[1738510268631,2.9758,209.76,209.67,4.771]
[1738510268936,0.03453413,209.7,209.58,15.06530416]
[1738510270839,3.413e-05,209.7,209.62,15.06530416]
[1738510271240,3.413e-05,209.7,209.69,4.7706]
[1738510272636,15.06530416,209.85,209.66,14.68258048]
[1738510272936,15.06530416,209.93,209.74,15.06530416]
[1738510273240,2.9841,209.94,209.78,15.06530416]
[1738510273734,2.9841,209.94,209.74,15.06530416]
[1738510273940,0.03386991,209.88,209.74,15.06530416]
[1738510274136,0.03386991,209.88,209.7,15.06530416]
[1738510274437,15.06530416,209.9,209.7,15.06530416]
[1738510274438,1.5242,209.89,209.7,15.06530416]
[1738510274639,0.03423766,209.81,209.7,15.06530416]
[1738510274841,0.03423766,209.81,209.8,4.768]
[1738510275031,3.766e-05,209.81,209.8,4.768]
[1738510275236,2.9841,209.94,209.87,4.7664]
[1738510275539,18.04940416,209.94,209.74,15.06530416]
[1738510275940,4.7663,209.88,209.74,15.06530416]
[1738510276142,18.04940416,209.94,209.78,15.06530416]
[1738510276336,18.04940416,209.94,209.82,4.7676]
[1738510276337,5.483e-05,209.83,209.82,4.7676]
[1738510276541,2.9841,209.94,209.78,15.06530416]
[1738510276945,2.9841,209.94,209.9,4.7658]
[1738510277143,1.5242,209.98,209.82,15.06530416]
[1738510277535,1.5242,209.98,209.78,15.06530416]
[1738510277736,0.03420087,209.92,209.88,0.03242738]
[1738510278746,0.03420087,209.92,209.9,4.7658]
[1738510280637,3.0754,210.04,209.9,15.06530416]
[1738510280837,3.0754,210.04,209.99,4.7637]
[1738510281048,4.7612,210.11,209.94,15.06530416]
[1738510281246,1.4867,210.12,210.06,4.7621]
[1738510281442,3.0193,210.16,209.98,15.06530416]
[1738510281647,3.0193,210.16,210.02,15.06530416]
[1738510281847,3.0193,210.16,209.97,3.4]
[1738510281848,3.0193,210.16,210.11,4.7609]
[1738510282055,34.04443415,210.25,210.06,15.06530416]
[1738510282346,34.04443415,210.25,210.1,15.06530416]
[1738510282544,38.80243415,210.25,210.16,4.7599]
[1738510282750,34.04443415,210.25,210.1,15.06530416]
[1738510283154,18.97912999,210.25,210.18,4.7594]
[1738510283554,0.03180633,210.2,210.18,4.7594]
[1738510283751,0.03180633,210.2,210.14,4.7603]
[1738510284159,0.03180633,210.2,210.15,0.03393852]
[1738510284957,0.03180633,210.2,210.05,4.7622]
[1738510285357,15.06530416,210.21,210.02,15.06530416]
[1738510286359,0.03652987,210.14,210.09,0.03416836]
[1738510288257,0.03652987,210.14,210.1,4.7611]
[1738510288463,0.03652987,210.14,210.09,0.03416836]
[1738510289665,3.4,210.23,210.09,0.03416836]
[1738510289666,1.4737,210.24,210.1,15.06530416]
[1738510289861,124.61838259,210.42,210.18,15.06530416]
[1738510289862,1.4461,210.31,210.18,15.06530416]
[1738510290164,1.4461,210.31,210.1,15.06530416]
[1738510290165,3.1053,210.37,210.22,15.06530416]
[1738510290563,4.7555,210.36,210.22,15.06530416]
[1738510290765,1.4461,210.4,210.26,15.06530416]
[1738510291064,4.754,210.43,210.35,4.7555]
[1738510291268,1.548,210.44,210.3,15.06530416]
[1738510291269,0.03307313,210.35,210.3,15.06530416]